bitfinex-derivatives/quotes_BTCF0:USTF0_20210102
["timestamp","ask_amount","ask_price","bid_price","bid_amount"]
[1609614103565,4.83842,32796.0,32758.0,0.00039013]
[1609614103967,0.17362,32796.0,32758.0,0.00039013]
[1609614104367,0.15833,32806.0,32758.0,0.00039013]
[1609614104565,0.15833,32806.0,32758.0,0.03782386]
[1609614104970,0.01774805,32840.0,32758.0,0.03782386]
[1609614105169,3.27240533,32829.0,32758.0,0.03782386]
[1609614105368,0.18043158,32823.0,32813.0,0.18043158]
[1609614105568,0.33080158,32823.0,32813.0,0.18043158]
[1609614105770,0.33080158,32823.0,32758.0,0.03782386]
[1609614105969,0.33080158,32823.0,32757.0,0.10942]
[1609614106369,0.33080158,32823.0,32758.0,0.03780846]
[1609614107474,0.15037,32823.0,32758.0,0.03780846]
[1609614107673,0.00037427,32822.0,32758.0,0.03780846]
[1609614108073,0.15037,32823.0,32758.0,0.03780846]
[1609614108472,0.52797426,32822.0,32758.0,0.03780846]
[1609614108875,0.00037432,32821.0,32758.0,0.03780846]
[1609614109478,0.00037432,32821.0,32787.0,0.18043158]
[1609614109675,0.00037432,32821.0,32787.0,0.13207]
[1609614109875,1.00037432,32821.0,32788.0,0.00038994]
[1609614110075,1.00037432,32821.0,32778.0,0.13462]
[1609614110478,0.00037449,32820.0,32778.0,0.13462]
[1609614110679,0.00037449,32820.0,32779.0,0.00037977]
[1609614110878,0.00037449,32821.0,32779.0,0.00037977]
[1609614111178,0.00037446,32819.0,32779.0,0.00037977]
[1609614111379,0.00037446,32819.0,32791.0,0.18043158]
[1609614111580,0.00037446,32820.0,32779.0,0.00037977]
[1609614111778,0.00037446,32821.0,32778.0,0.13462]
[1609614111981,0.00037443,32819.0,32778.0,0.13462]
[1609614112379,0.0003744,32820.0,32779.0,0.00037972]
[1609614112578,0.0003744,32818.0,32779.0,0.00037972]
[1609614112781,0.0003744,32819.0,32779.0,0.00037972]
[1609614112980,0.00037438,32817.0,32779.0,0.00037972]
[1609614113282,0.00037438,32818.0,32779.0,0.00037972]
[1609614113481,0.00037438,32818.0,32806.0,0.18043158]
[1609614113681,0.15037,32823.0,32806.0,0.18043158]
[1609614113881,1.0,32824.0,32806.0,0.18043158]
[1609614114081,0.0003744,32822.0,32806.0,0.18043158]
[1609614114281,0.1186444,32822.0,32806.0,0.18043158]
[1609614114483,0.11827,32822.0,32806.0,0.18043158]
[1609614115381,0.11827,32822.0,32812.0,0.18043158]
[1609614115584,0.65707,32822.0,32812.0,0.14848]
[1609614116183,0.00037438,32821.0,32812.0,0.14848]
[1609614116582,0.00037438,32821.0,32802.0,0.16936]
[1609614117384,0.18043158,32803.0,32802.0,0.16936]
[1609614118883,0.18043158,32803.0,32778.0,0.13462]
[1609614119084,0.18043158,32803.0,32757.0,0.10942]
[1609614119285,0.18043158,32803.0,32751.0,0.2918]
[1609614119487,0.18043158,32782.0,32779.0,0.00037978]
[1609614119686,0.18043158,32782.0,32758.0,0.03782461]
[1609614119887,0.18043158,32782.0,32752.0,0.03783011]
[1609614120286,0.18043158,32782.0,32759.0,0.0003799]
[1609614120487,0.18043158,32782.0,32759.0,0.13572]
[1609614120687,0.18043158,32782.0,32760.0,0.00037992]
[1609614121386,0.18043158,32782.0,32779.0,0.18043158]
[1609614121586,0.1196,32794.0,32779.0,0.18043158]
[1609614121987,0.1196,32794.0,32780.0,0.00037985]
[1609614122786,0.11373,32802.0,32780.0,0.00037985]
[1609614123186,1.0,32803.0,32780.0,0.00037985]
[1609614123387,1.0,32803.0,32802.0,0.18043158]
[1609614123587,1.0,32803.0,32802.0,0.34522158]
[1609614123987,1.0,32803.0,32802.0,0.34560116]
[1609614124189,0.18043158,32832.0,32802.0,0.34560116]
[1609614124190,0.02744599,32812.0,32802.0,0.34560116]
[1609614124388,0.02744599,32812.0,32802.0,6.34560116]
[1609614124788,0.02744599,32812.0,32803.0,0.00037949]
[1609614125390,0.18043158,32829.0,32811.0,0.18043158]
[1609614125589,0.00921199,32842.0,32811.0,0.18043158]
[1609614125789,0.00921199,32842.0,32812.0,0.00037943]
[1609614126500,0.00921199,32842.0,32822.0,5.0]
[1609614126689,0.00921199,32842.0,32822.0,5.1645]
[1609614127094,0.00921399,32845.0,32822.0,5.1645]
[1609614127700,0.00921399,32845.0,32823.0,0.0003794]
[1609614127893,0.00921399,32845.0,32822.0,5.1645]
[1609614128498,0.00921399,32845.0,32823.0,0.0003794]
[1609614128903,0.00037414,32838.0,32822.0,0.1645]
[1609614129097,0.00037414,32838.0,32811.0,0.13724]
[1609614129299,0.10691414,32838.0,32811.0,0.13724]
[1609614129497,0.18043158,32812.0,32811.0,0.13724]
[1609614130097,0.12215,32826.0,32811.0,0.13724]
[1609614130593,0.00037437,32825.0,32802.0,0.16479]
[1609614130794,0.01,32811.0,32768.0,1.94991854]
[1609614131094,0.01,32811.0,32803.0,0.00037968]
[1609614131292,0.01,32811.0,32803.0,0.1505]
[1609614131493,0.18043158,32804.0,32803.0,0.1505]
[1609614131894,0.18043158,32804.0,32803.0,0.1508797]
[1609614132095,0.01,32811.0,32803.0,0.1408797]
[1609614132495,0.01,32811.0,32810.0,6.0]
[1609614132698,0.01,32811.0,32810.0,6.15794]
[1609614132896,0.01,32811.0,32810.0,6.15831959]
[1609614133597,0.01,32811.0,32810.0,6.33875117]
[1609614133996,0.01,32811.0,32810.0,6.32875117]
[1609614134197,0.01,32811.0,32810.0,0.33875117]
[1609614135096,0.01,32811.0,32810.0,0.37615889]
[1609614135297,0.01,32811.0,32810.0,0.33875117]
[1609614136299,0.01,32811.0,32810.0,0.32875117]
[1609614136698,0.01,32811.0,32810.0,0.32875107]
[1609614137699,0.02790463,32834.0,32810.0,0.32875107]
[1609614137900,0.2989,32839.0,32811.0,0.03778661]
[1609614138303,0.2989,32839.0,32838.0,6.0]
[1609614138501,0.2989,32839.0,32838.0,6.16956]
[1609614138702,0.2989,32839.0,32838.0,6.16993926]
[1609614139503,0.2989,32839.0,32838.0,6.35037084]
[1609614140304,0.2989,32839.0,32838.0,0.35037084]
[1609614142206,0.2989,32839.0,32838.0,6.35037084]
[1609614144212,0.2989,32839.0,32838.0,1.16993926]
[1609614145515,0.2989,32839.0,32838.0,1.35037084]
[1609614146313,0.2989,32839.0,32838.0,6.35037084]
[1609614147315,0.2989,32839.0,32838.0,6.16993926]
[1609614147516,0.47933158,32839.0,32838.0,6.16993926]
[1609614147915,0.47933158,32839.0,32838.0,4.21073926]
[1609614148117,0.47933158,32839.0,32819.0,0.14202]
[1609614148517,4.0787,32838.0,32820.0,0.00037935]
[1609614149118,0.47933158,32839.0,32820.0,0.00037935]
[1609614149326,0.47933158,32839.0,32814.0,0.00037944]
[1609614149518,0.2989,32839.0,32817.0,0.18043158]
[1609614149721,0.2989,32839.0,32821.0,0.00037944]
[1609614149918,0.2989,32839.0,32818.0,0.0003794]
[1609614150127,0.2989,32839.0,32822.0,0.0003794]
[1609614150319,0.2989,32839.0,32819.0,0.0003796]
[1609614150620,0.2989,32839.0,32823.0,0.00037946]
[1609614151020,0.2989,32839.0,32820.0,0.00037943]
[1609614151220,0.2989,32839.0,32824.0,0.00037938]
[1609614151421,0.2989,32839.0,32820.0,0.00037936]
[1609614151619,0.2989,32839.0,32836.0,0.18043158]
[1609614151821,0.2989,32839.0,32825.0,0.00037934]
[1609614152022,0.2989,32839.0,32837.0,0.00037934]
[1609614152222,0.2989,32839.0,32826.0,0.12395]
[1609614152621,0.2989,32839.0,32838.0,0.00037929]
[1609614152821,0.2989,32839.0,32826.0,0.12395]
[1609614152822,0.2989,32839.0,32827.0,0.00037926]
[1609614153021,0.2989,32839.0,32838.0,0.00037926]
[1609614153421,0.1296,32839.0,32838.0,0.16233]
[1609614153621,0.1296,32839.0,32838.0,0.34314084]
[1609614153821,0.10548,32851.0,32838.0,0.34314084]
[1609614154025,0.18043158,32857.0,32838.0,0.34314084]
[1609614154423,0.18043158,32857.0,32839.0,0.00037923]
[1609614155624,3.7607,32867.0,32849.0,0.18043158]
[1609614155825,0.00931442,32874.0,32849.0,0.18043158]
[1609614156224,0.00931442,32874.0,32850.0,0.00037913]
[1609614156526,0.00930992,32875.0,32850.0,0.00037913]
[1609614157529,0.18043158,32873.0,32867.0,0.18043158]
[1609614157729,0.33420158,32873.0,32867.0,0.18043158]
[1609614159132,0.33420158,32873.0,32848.0,0.17379]
[1609614159332,0.33420158,32873.0,32849.0,0.00037883]
[1609614159533,0.15377,32873.0,32872.0,0.18043158]
[1609614159934,0.15377,32873.0,32856.0,0.16724]
[1609614160534,0.15377,32873.0,32857.0,0.00037881]
[1609614161535,0.15377,32873.0,32867.0,0.18043158]
[1609614161735,0.15377,32873.0,32857.0,0.00037881]
[1609614162837,1.0,32888.0,32857.0,0.00037881]
[1609614163237,1.5167,32888.0,32857.0,0.00037881]
[1609614163439,0.00037373,32887.0,32857.0,0.00037881]
[1609614163638,0.13980373,32887.0,32859.0,0.18043158]
[1609614163838,0.00037377,32886.0,32859.0,0.18043158]
[1609614164139,1.0,32878.0,32859.0,0.18043158]
[1609614164539,1.12568,32878.0,32859.0,0.18043158]
[1609614164941,1.12568,32878.0,32856.0,0.16724]
[1609614165141,0.00037379,32877.0,32848.0,0.17379]
[1609614165345,0.00037379,32877.0,32839.0,0.294]
[1609614165543,1.12568,32878.0,32858.0,0.18043158]
[1609614165755,1.0,32877.0,32849.0,0.11206893]
[1609614165946,4.52626,32865.0,32850.0,0.00037896]
[1609614166144,5.52626,32865.0,32850.0,0.00037896]
[1609614166344,5.52626,32865.0,32823.0,2.25573355]
[1609614166544,0.0003739,32864.0,32823.0,2.25573355]
[1609614166744,0.0003739,32864.0,32824.0,0.00037911]
[1609614167145,0.0003739,32864.0,32824.0,0.15793911]
[1609614167346,4.2404,32851.0,32824.0,0.15793911]
[1609614167546,4.2404,32851.0,32824.0,0.15756]
[1609614167547,0.18043158,32825.0,32824.0,0.15756]
[1609614168146,0.18043158,32825.0,32824.0,0.15793921]
[1609614168548,0.13006,32835.0,32824.0,0.15793921]
[1609614168847,0.13006,32835.0,32825.0,0.00037921]
[1609614169447,0.13006,32835.0,32821.0,0.00037916]
[1609614169647,0.18043158,32834.0,32832.0,0.18043158]
[1609614169950,0.18043158,32834.0,32833.0,0.00037914]
[1609614170348,0.10748,32842.0,32833.0,0.00037914]
[1609614170949,0.11341,32851.0,32833.0,0.12908914]
[1609614171351,3.9175,32875.0,32833.0,0.12908914]
[1609614171552,0.00928945,32869.0,32834.0,0.00038275]
[1609614171750,0.00928945,32869.0,32856.0,0.18043158]
[1609614172153,0.00928945,32869.0,32857.0,0.00038269]
[1609614172551,0.00928945,32869.0,32852.0,0.11337]
[1609614172751,0.00928945,32869.0,32858.0,0.00038268]
[1609614172951,3.9175,32875.0,32853.0,0.00038268]
[1609614173152,3.9175,32875.0,32852.0,0.11337]
[1609614173353,0.0003738,32874.0,32852.0,0.11337]
[1609614173555,0.0003738,32874.0,32854.0,0.0003827]
[1609614173756,0.18043158,32855.0,32853.0,0.0003827]
[1609614173955,0.18043158,32855.0,32852.0,0.11337]
[1609614174154,0.18043158,32855.0,32854.0,0.00038278]
[1609614174454,0.18043158,32855.0,32853.0,0.00038278]
[1609614174654,1.0,32863.0,32853.0,0.00038278]
[1609614174856,1.0,32863.0,32844.0,0.10948]
[1609614175054,0.00037387,32862.0,32845.0,0.00038276]
[1609614175255,1.0,32863.0,32845.0,0.00038276]
[1609614175657,1.0,32863.0,32857.0,0.18043158]
[1609614176156,0.11613,32866.0,32845.0,0.00038276]
[1609614176358,0.11613,32866.0,32858.0,0.0003827]
[1609614176856,0.11613,32866.0,32853.0,0.13348]
[1609614177057,0.11613,32866.0,32859.0,0.00038262]
[1609614177256,0.2822,32875.0,32859.0,0.00038262]
[1609614177562,0.2822,32875.0,32854.0,0.00038259]
[1609614177765,0.18043158,32874.0,32860.0,0.00038259]
[1609614177959,0.18043158,32874.0,32855.0,0.00038259]
[1609614178159,0.18043158,32874.0,32861.0,0.00038259]
[1609614178357,0.18043158,32874.0,32861.0,0.13044259]
[1609614178558,0.18043158,32874.0,32861.0,0.13006]
[1609614178762,0.18043158,32874.0,32862.0,0.00038259]
[1609614179658,0.18043158,32863.0,32862.0,0.00038259]
[1609614180260,0.85413158,32863.0,32860.0,0.00038265]
[1609614180661,0.85413158,32863.0,32862.0,0.00038267]
[1609614180861,0.85413158,32863.0,32861.0,0.00038269]
[1609614181060,0.85413158,32863.0,32844.0,0.10948]
[1609614181061,0.85413158,32863.0,32854.0,0.00038276]
[1609614181461,0.85413158,32863.0,32862.0,0.00038279]
[1609614181663,0.85413158,32863.0,32855.0,0.00038279]
[1609614181862,0.00037392,32862.0,32847.0,0.18043158]
[1609614182261,0.00037392,32862.0,32848.0,0.00038281]
[1609614182461,0.85413158,32863.0,32848.0,0.00038281]
[1609614183162,0.85413158,32863.0,32845.0,0.00038274]
[1609614183764,0.6737,32863.0,32857.0,0.18043158]
[1609614183963,0.6737,32863.0,32858.0,0.00038274]
[1609614185766,0.6737,32863.0,32862.0,0.18043158]
[1609614185966,0.2822,32875.0,32862.0,0.18043158]
[1609614186167,0.2822,32875.0,32862.0,0.18081419]
[1609614186367,0.2822,32875.0,32863.0,0.00038259]
[1609614186567,0.0093298,32879.0,32863.0,0.00038259]
[1609614187668,0.18976138,32879.0,32877.0,0.18043158]
[1609614188268,0.18976138,32879.0,32878.0,0.00038255]
[1609614189271,0.19013507,32879.0,32878.0,0.00038255]
[1609614189472,0.18080527,32879.0,32878.0,0.00038255]
[1609614189672,0.18080527,32879.0,32878.0,0.18043158]
[1609614190079,0.18080527,32879.0,32878.0,0.0003826]
[1609614190572,0.18080527,32879.0,32871.0,0.00038258]
[1609614191173,0.18043158,32879.0,32871.0,0.00038258]
[1609614191374,0.00037369,32878.0,32871.0,0.00038258]
[1609614191775,0.00037369,32878.0,32872.0,0.18043158]
[1609614191973,0.15526,32884.0,32871.0,0.00038258]
[1609614192175,1.0,32880.0,32873.0,0.00038261]
[1609614192576,0.00037376,32879.0,32857.0,0.1]
[1609614192776,0.00037376,32879.0,32874.0,0.00038268]
[1609614192976,0.00037376,32879.0,32858.0,0.00038268]
[1609614193277,0.00037376,32879.0,32857.0,0.1]
[1609614193477,0.00037376,32879.0,32859.0,0.00038269]
[1609614193877,0.18043158,32860.0,32858.0,0.00038269]
[1609614194077,0.18043158,32860.0,32859.0,0.00038269]
[1609614194678,0.18043158,32860.0,32858.0,0.00038266]
[1609614194878,0.18043158,32860.0,32859.0,0.00038266]
[1609614195380,0.18043158,32860.0,32858.0,0.00038266]
[1609614195579,0.18043158,32860.0,32859.0,0.00038266]
[1609614195779,0.18043158,32866.0,32859.0,0.18081424]
[1609614196180,0.11303,32871.0,32860.0,0.00038259]
[1609614196380,4.21686961,32884.0,32860.0,0.00038259]
[1609614197381,0.00037368,32883.0,32860.0,0.00038259]
[1609614197581,0.16462441,32884.0,32860.0,0.03774952]
[1609614197781,0.16462441,32884.0,32881.0,0.18043158]
[1609614198381,0.16462441,32884.0,32882.0,0.00038249]
[1609614199181,0.16462441,32884.0,32869.0,0.00038253]
[1609614199383,0.16462441,32884.0,32868.0,0.13575]
[1609614199582,0.16462441,32884.0,32869.0,0.00038255]
[1609614199782,0.16462441,32884.0,32883.0,0.18043158]
[1609614200285,0.15526,32884.0,32883.0,0.18043158]
[1609614200485,0.02794609,32898.0,32883.0,0.18081405]
[1609614200884,0.02794609,32898.0,32884.0,0.00038247]
[1609614201487,0.30197295,32902.0,32884.0,0.00038247]
[1609614201686,0.30197295,32902.0,32869.0,0.00038242]
[1609614202085,0.46400295,32902.0,32885.0,0.00038242]
[1609614202286,0.46400295,32902.0,32868.0,0.13575]
[1609614202287,0.45463,32902.0,32870.0,0.00038242]
[1609614202485,0.45463,32902.0,32869.0,0.00038242]
[1609614202785,0.45463,32902.0,32871.0,0.00038245]
[1609614202985,0.45463,32902.0,32870.0,0.00038245]
[1609614203388,0.45463,32902.0,32872.0,0.00038245]
[1609614203685,0.45463,32902.0,32871.0,0.00038245]
[1609614203885,0.45463,32902.0,32868.0,0.13575]
[1609614203886,0.45463,32902.0,32897.0,0.18043158]
[1609614204487,0.45463,32902.0,32883.0,0.14296]
[1609614204885,0.45463,32902.0,32884.0,0.00038243]
[1609614205186,0.0299,32901.0,32884.0,0.00038243]
[1609614205787,0.18043158,32894.0,32892.0,0.18043158]
[1609614206487,0.18043158,32894.0,32883.0,0.14296]
[1609614206686,0.28923158,32894.0,32883.0,0.14296]
[1609614207088,0.28923158,32894.0,32884.0,0.00038245]
[1609614207292,0.28923158,32894.0,32875.0,0.13607]
[1609614207790,0.18043158,32876.0,32875.0,0.31650158]
[1609614208293,0.18043158,32876.0,32875.0,0.31688409]
[1609614208893,0.16083,32887.0,32875.0,0.31688409]
[1609614209093,0.16083,32887.0,32876.0,0.00038249]
[1609614209897,0.16083,32887.0,32885.0,0.18043158]
[1609614210095,0.1088,32894.0,32885.0,0.18043158]
[1609614210496,0.1088,32894.0,32886.0,0.00038242]
[1609614211798,0.00037357,32893.0,32886.0,0.00038242]
[1609614211999,0.00037357,32893.0,32889.0,0.18043158]
[1609614212400,0.00037357,32900.0,32889.0,0.18043158]
[1609614212599,0.0299,32901.0,32890.0,0.00038242]
[1609614212799,0.00037356,32899.0,32890.0,0.0003824]
[1609614213099,0.00037356,32900.0,32890.0,0.0003824]
[1609614213300,0.00037356,32898.0,32890.0,0.0003824]
[1609614213701,0.00037356,32900.0,32883.0,0.0003824]
[1609614213901,0.18080514,32897.0,32894.0,0.18043158]
[1609614214201,0.18043158,32897.0,32894.0,0.18043158]
[1609614214403,0.18043158,32897.0,32895.0,0.00038233]
[1609614214802,0.0299,32901.0,32889.0,0.14147]
[1609614215004,0.0299,32901.0,32896.0,0.00038233]
[1609614215204,0.0299,32901.0,32890.0,0.00038225]
[1609614215605,0.12394,32910.0,32897.0,0.00038223]
[1609614215804,0.12394,32910.0,32891.0,0.00038223]
[1609614216104,0.12394,32910.0,32909.0,0.18043158]
[1609614216303,0.12394,32910.0,32909.0,0.18081373]
[1609614216906,0.18043158,32913.0,32909.0,0.18043158]
[1609614217707,1.00935353,32935.0,32909.0,0.18043158]
[1609614217913,0.00037336,32929.0,32920.0,0.18043158]
[1609614218110,1.00037336,32929.0,32903.0,0.15114]
[1609614218716,0.00037336,32928.0,32904.0,0.0003822]
[1609614218910,0.63737336,32928.0,32896.0,0.10825]
[1609614219109,1.0,32927.0,32896.0,0.10825]
[1609614219308,1.0,32927.0,32889.0,2.10046842]
[1609614219508,0.00037349,32926.0,32889.0,2.10046842]
[1609614219709,0.00037349,32926.0,32890.0,0.00038232]
[1609614219910,0.18043158,32891.0,32890.0,0.00038232]
[1609614220312,0.18043158,32891.0,32890.0,1.95871245]
[1609614220912,1.18043158,32891.0,32890.0,0.00038232]
[1609614221111,1.18043158,32891.0,32874.0,1.96569658]
[1609614221511,0.98043158,32891.0,32883.0,0.00038243]
[1609614221912,0.18043158,32884.0,32881.0,0.18043158]
[1609614222111,0.98043158,32883.0,32876.0,0.15225]
[1609614222311,0.98043158,32883.0,32882.0,0.00038246]
[1609614222713,0.98043158,32883.0,32877.0,0.00038246]
[1609614222912,0.98043158,32883.0,32882.0,0.00038246]
[1609614223112,0.18043158,32884.0,32877.0,0.00038246]
[1609614223513,0.18043158,32884.0,32882.0,0.00038246]
[1609614223712,0.98043158,32883.0,32878.0,0.00038244]
[1609614223912,0.98043158,32883.0,32882.0,0.00038244]
[1609614224312,0.98043158,32883.0,32879.0,0.00038244]
[1609614224512,0.98043158,32883.0,32882.0,0.00038244]
[1609614224711,0.98043158,32883.0,32880.0,0.00038244]
[1609614224913,0.98043158,32887.0,32880.0,0.00038244]
[1609614225113,0.98043158,32887.0,32882.0,0.00038244]
[1609614225314,0.98043158,32887.0,32881.0,0.00038244]
[1609614225713,0.98043158,32887.0,32877.0,0.00038244]
[1609614225914,0.14051,32888.0,32881.0,0.18043158]
[1609614226114,0.14051,32888.0,32882.0,0.00038244]
[1609614226314,0.14051,32888.0,32881.0,0.18043158]
[1609614226514,0.14051,32888.0,32883.0,0.00038244]
[1609614226814,0.14051,32888.0,32882.0,0.00038242]
[1609614227216,0.98043158,32887.0,32884.0,0.00038242]
[1609614227416,0.98043158,32887.0,32883.0,0.00038242]
[1609614227618,0.98043158,32887.0,32877.0,0.00038244]
[1609614227918,0.98043158,32887.0,32884.0,0.00038244]
[1609614228117,1.98043158,32887.0,32878.0,0.00038247]
[1609614228518,1.98043158,32887.0,32869.0,0.12369]
[1609614228719,0.00037365,32886.0,32879.0,0.00038249]
[1609614228919,0.00037365,32886.0,32865.0,0.00038249]
[1609614229319,0.00037365,32886.0,32880.0,0.00038249]
[1609614229518,1.98043158,32887.0,32867.0,0.11133]
[1609614229920,0.18043158,32868.0,32867.0,0.11133]
[1609614230119,1.16086316,32868.0,32867.0,0.11133]
[1609614230319,1.16086316,32868.0,32867.0,0.11171469]
[1609614230720,1.16086316,32868.0,32858.0,1.97777763]
[1609614231120,1.16086316,32868.0,32859.0,0.00038477]
[1609614232020,0.18043158,32860.0,32859.0,0.00038477]
[1609614232223,1.16086316,32860.0,32859.0,0.00038477]
[1609614232421,1.16086316,32860.0,32858.0,0.00038481]
[1609614232620,1.16086316,32860.0,32857.0,0.1]
[1609614232821,1.0,32859.0,32857.0,0.1]
[1609614233221,1.0,32859.0,32858.0,0.0003848]
[1609614234227,1.0,32859.0,32857.0,0.1]
[1609614236629,1.0,32859.0,32846.0,1.98658013]
[1609614236828,1.6462,32859.0,32846.0,1.98658013]
[1609614237230,1.6462,32859.0,32847.0,0.00038485]
[1609614237630,1.6462,32859.0,32843.0,0.14099]
[1609614238031,0.18043158,32844.0,32843.0,0.14099]
[1609614238231,1.18043158,32844.0,32843.0,0.14099]
[1609614238832,1.18043158,32844.0,32836.0,1.99297422]
[1609614239232,1.18043158,32844.0,32837.0,0.00038495]
[1609614240037,1.0,32844.0,32839.0,0.18043158]
[1609614240234,1.0,32843.0,32839.0,0.18043158]
[1609614240646,1.0,32843.0,32836.0,1.99297422]
[1609614240837,4.6842,32843.0,32836.0,1.99297422]
[1609614241044,4.83568,32843.0,32836.0,1.99297422]
[1609614241736,4.83568,32843.0,32836.0,1.85297422]
[1609614242135,0.18043158,32837.0,32836.0,1.85297422]
[1609614242335,1.18043158,32837.0,32836.0,1.85297422]
[1609614244239,1.18043158,32837.0,32828.0,2.17763657]
[1609614245640,1.18043158,32837.0,32829.0,0.00038493]
[1609614246043,1.18043158,32837.0,32834.0,0.18043158]
[1609614246044,1.0,32837.0,32834.0,0.18043158]
[1609614246241,1.0,32836.0,32834.0,0.18043158]
[1609614247443,1.0,32835.0,32834.0,0.18043158]
[1609614247642,1.0,32835.0,32834.0,0.18081646]
[1609614248448,1.0,32842.0,32834.0,0.18081646]
[1609614248846,1.0,32842.0,32835.0,0.00038485]
[1609614249448,1.0,32842.0,32835.0,0.14799485]
[1609614249648,1.0,32841.0,32835.0,0.14799485]
[1609614249851,0.1069,32852.0,32836.0,0.00038482]
[1609614250052,1.1069,32852.0,32851.0,0.18043158]
[1609614250250,1.0,32852.0,32851.0,0.18043158]
[1609614250652,1.0,32852.0,32851.0,0.1808163]
[1609614251051,1.0,32852.0,32851.0,0.3382763]
[1609614251652,1.0,32866.0,32851.0,0.3382763]
[1609614252052,1.0,32866.0,32864.0,0.18043158]
[1609614253252,1.0,32866.0,32865.0,0.00038461]
[1609614253857,1.0,32866.0,32858.0,0.13452]
[1609614254056,1.0,32866.0,32865.0,0.18043158]
[1609614254456,1.0,32866.0,32859.0,0.00038463]
[1609614254658,1.0,32866.0,32858.0,0.13452]
[1609614254859,1.0,32866.0,32860.0,0.00038466]
[1609614255058,1.0,32866.0,32859.0,0.00038468]
[1609614255359,1.0,32865.0,32851.0,0.15746]
[1609614255559,1.1213,32865.0,32851.0,0.15746]
[1609614255961,1.1213,32865.0,32852.0,0.00038466]
[1609614256160,0.18043158,32857.0,32854.0,0.18043158]
[1609614256365,1.0,32856.0,32852.0,0.00038466]
[1609614256761,1.0,32856.0,32855.0,0.00038472]
[1609614256961,1.0,32856.0,32853.0,0.00038472]
[1609614257161,1.0,32856.0,32855.0,0.00038469]
[1609614257361,1.0,32864.0,32855.0,0.00038469]
[1609614257561,1.0,32864.0,32854.0,0.00038465]
[1609614257761,1.0,32864.0,32856.0,0.00038467]
[1609614257963,1.0,32864.0,32855.0,0.00038467]
[1609614258161,0.18043158,32859.0,32858.0,0.18043158]
[1609614258362,1.0,32859.0,32858.0,0.18043158]
[1609614258562,1.0,32859.0,32858.0,0.18081622]
[1609614259261,1.0,32864.0,32858.0,0.18081622]
[1609614259664,1.0,32864.0,32859.0,0.0003846]
[1609614260062,1.0,32864.0,32863.0,0.18043158]
[1609614260462,1.0,32864.0,32863.0,0.18081616]
[1609614260662,0.12083,32880.0,32863.0,0.18081616]
[1609614260863,1.0,32879.0,32863.0,0.18081616]
[1609614261265,1.0,32879.0,32864.0,0.00038448]
[1609614262172,0.18043158,32877.0,32873.0,0.18043158]
[1609614262371,1.0,32876.0,32873.0,0.18043158]
[1609614262565,1.0,32876.0,32874.0,0.00038448]
[1609614262765,1.0,32876.0,32873.0,0.18043158]
[1609614263769,1.0,32876.0,32874.0,0.00038447]
[1609614264172,1.0,32876.0,32873.0,0.18043158]
[1609614265173,0.0882,32876.0,32873.0,0.18043158]
[1609614265368,0.0882,32876.0,32874.0,0.00038444]
[1609614265772,0.17378,32889.0,32874.0,0.00038444]
[1609614266168,0.0038393,32899.0,32888.0,0.18043158]
[1609614266969,0.0038393,32899.0,32889.0,0.00038431]
[1609614267371,0.0038393,32899.0,32889.0,0.14929431]
[1609614267771,0.0038393,32899.0,32890.0,0.00038427]
[1609614268170,0.0038393,32899.0,32898.0,0.18043158]
[1609614268369,0.0038393,32899.0,32890.0,0.00038427]
[1609614268570,0.0038393,32899.0,32889.0,0.14891]
[1609614270171,0.0038393,32899.0,32898.0,0.18043158]
[1609614270373,1.0,32901.0,32889.0,0.14891]
[1609614270872,1.0,32901.0,32900.0,0.01]
[1609614271272,1.0,32905.0,32900.0,0.01]
[1609614272271,0.18043158,32902.0,32900.0,0.19043158]
[1609614272474,0.12296,32909.0,32900.0,0.19043158]
[1609614273072,1.0,32908.0,32900.0,0.19043158]
[1609614273973,0.12296,32909.0,32900.0,0.19043158]
[1609614274177,1.0,32909.0,32908.0,0.18043158]
[1609614274378,1.0,32909.0,32900.0,0.01]
[1609614276177,0.18043158,32901.0,32900.0,0.01]
[1609614276377,1.0,32909.0,32900.0,0.01]
[1609614278182,1.0,32909.0,32906.0,0.18043158]
[1609614279080,0.16648,32910.0,32906.0,0.18043158]
[1609614279681,1.0,32920.0,32906.0,0.18043158]
[1609614280282,1.0,32920.0,32910.0,0.18043158]
[1609614280882,1.2805,32921.0,32910.0,0.18043158]
[1609614281986,0.2805,32921.0,32910.0,0.18043158]
[1609614282187,0.18043158,32934.0,32920.0,0.18043158]
[1609614282385,1.18043158,32934.0,32920.0,0.18043158]
[1609614284186,1.0,32934.0,32932.0,0.18043158]
[1609614284386,0.98,32934.0,32932.0,0.18043158]
[1609614284587,0.98,32934.0,32909.0,0.14891]
[1609614284787,1.10995,32934.0,32909.0,0.14891]
[1609614285788,0.12995,32934.0,32909.0,0.14891]
[1609614285989,1.10995,32934.0,32909.0,0.14891]
[1609614286389,1.10995,32934.0,32928.0,0.18043158]
[1609614286689,1.10995,32934.0,32919.0,0.1524]
[1609614288390,1.10995,32934.0,32923.0,0.18043158]
[1609614288790,1.10995,32934.0,32919.0,0.1524]
[1609614290292,1.10995,32934.0,32921.0,0.18043158]
[1609614290493,0.12995,32934.0,32921.0,0.18043158]
[1609614290693,1.10995,32934.0,32921.0,0.18043158]
[1609614290893,0.98,32934.0,32921.0,0.18043158]
[1609614291792,0.98,32940.0,32921.0,0.18043158]
[1609614292394,0.98,32940.0,32933.0,0.18043158]
[1609614292997,0.98,32939.0,32927.0,0.0099]
[1609614293195,1.0871,32939.0,32927.0,0.0099]
[1609614293799,0.00037311,32938.0,32927.0,0.0099]
[1609614294397,0.18043158,32928.0,32927.0,0.0099]
[1609614294799,1.16043158,32928.0,32927.0,0.0099]
[1609614298207,0.18043158,32928.0,32927.0,0.0099]
[1609614299006,1.16043158,32928.0,32927.0,0.0099]
[1609614300006,0.18043158,32928.0,32927.0,0.0099]
[1609614304315,0.18080468,32928.0,32927.0,0.0099]
[1609614305415,0.18080468,32928.0,32927.0,0.01028369]
[1609614306917,0.18043158,32928.0,32927.0,0.01028369]
[1609614307517,0.18080468,32928.0,32927.0,0.01028369]
[1609614308317,0.18043158,32928.0,32927.0,0.19071527]
[1609614308519,0.1071,32939.0,32927.0,0.19071527]
[1609614308817,0.98,32941.0,32927.0,0.19071527]
[1609614309218,0.00037303,32938.0,32928.0,0.00038362]
[1609614309418,0.00037303,32940.0,32928.0,0.00038362]